bitfinex/quotes_BTCUSD_20251015
["timestamp","ask_amount","ask_price","bid_price","bid_amount"]
[1760549654698,0.06501306,110580.0,110570.0,0.17988088]
[1760549654910,0.05501306,110580.0,110570.0,0.17988088]
[1760549655131,0.01088923,110580.0,110570.0,0.17988088]
[1760549655349,0.0276513,110580.0,110570.0,0.17988088]
[1760549655572,0.0276513,110580.0,110560.0,0.18088262]
[1760549655798,0.24529872,110580.0,110550.0,0.1809079]
[1760549656019,0.240457,110580.0,110560.0,0.1989867]
[1760549656251,0.241457,110580.0,110560.0,0.18089698]
[1760549656501,0.10824777,110580.0,110560.0,0.18089698]
[1760549656694,0.11635225,110580.0,110570.0,0.18088088]
[1760549657014,0.11635225,110580.0,110560.0,0.18089698]
[1760549657671,0.11635225,110580.0,110560.0,0.18089672]
[1760549657878,0.20703433,110580.0,110560.0,0.18089597]
[1760549658108,0.20703433,110580.0,110560.0,0.18089698]
[1760549658519,0.20603433,110580.0,110570.0,0.18088088]
[1760549658726,0.11735225,110580.0,110570.0,0.18088088]
[1760549658926,0.11735225,110580.0,110560.0,0.18089698]
[1760549659571,0.11635225,110580.0,110560.0,0.18089698]
[1760549659772,0.11735225,110580.0,110560.0,0.18089698]
[1760549660489,0.11735225,110580.0,110570.0,0.18088088]
[1760549660664,0.16266045,110580.0,110570.0,0.18088088]
[1760549661045,0.16166045,110580.0,110570.0,0.18088088]
[1760549661376,0.13041701,110580.0,110570.0,0.18088088]
[1760549661608,0.08510881,110580.0,110570.0,0.18088088]
[1760549661810,0.05410881,110580.0,110570.0,0.18088088]
[1760549662213,0.05510881,110580.0,110570.0,0.18088088]
[1760549662410,0.08510881,110580.0,110560.0,0.18089698]
[1760549662726,0.08510881,110580.0,110570.0,0.18088088]
[1760549662938,0.17479089,110580.0,110570.0,0.18088088]
[1760549663714,0.17479089,110580.0,110560.0,0.18089698]
[1760549664080,0.17379089,110580.0,110560.0,0.18089698]
[1760549664288,0.17379089,110580.0,110570.0,0.18088088]
[1760549664494,0.17479089,110580.0,110570.0,0.18088088]
[1760549665125,0.08510881,110580.0,110570.0,0.18088088]
[1760549665343,0.08410881,110580.0,110570.0,0.18088088]
[1760549665544,0.05510881,110580.0,110570.0,0.18088088]
[1760549668673,0.05239585,110580.0,110570.0,0.18088088]
[1760549668880,0.03304282,110580.0,110570.0,0.18088088]
[1760549669337,0.05239585,110580.0,110570.0,0.18088088]
[1760549669756,0.05239585,110580.0,110570.0,0.21706316]
[1760549669972,0.01060724,110580.0,110570.0,0.21706316]
[1760549671237,0.00150276,110580.0,110570.0,0.21706316]
[1760549671695,0.00150276,110580.0,110570.0,0.95914835]
[1760549671900,0.00050276,110580.0,110570.0,0.21706316]
[1760549672332,0.00050276,110580.0,110570.0,0.30675328]
[1760549674321,0.01985579,110580.0,110570.0,0.30675328]
[1760549674731,0.00050276,110580.0,110570.0,0.30675328]
[1760549675523,0.01985579,110580.0,110570.0,0.30675328]
[1760549677839,0.03666761,110580.0,110570.0,0.30675328]
[1760549679215,0.01985579,110580.0,110570.0,1.04883847]
[1760549679596,0.01985579,110580.0,110570.0,1.38883847]
[1760549679939,0.00050276,110580.0,110570.0,1.38883847]
[1760549681000,0.04459325,110600.0,110570.0,1.38883847]
[1760549681365,0.02791848,110600.0,110590.0,1.26293336]
[1760549681572,0.09153058,110610.0,110600.0,0.2170141]
[1760549681804,0.09153058,110610.0,110600.0,1.04878941]
[1760549682009,0.01977848,110610.0,110600.0,1.04878941]
[1760549682214,0.03660602,110610.0,110600.0,0.30670422]
[1760549682421,0.01977848,110610.0,110600.0,0.30670422]
[1760549683379,0.03658721,110610.0,110600.0,0.30670422]
[1760549684235,0.01720873,110610.0,110600.0,0.30670422]
[1760549685034,0.0004,110610.0,110600.0,0.30670422]
[1760549691025,0.0004,110610.0,110600.0,0.18083182]
[1760549693508,0.02813848,110610.0,110600.0,0.18083182]
[1760549693679,0.0449258,110610.0,110600.0,0.18083182]
[1760549693883,0.05264272,110610.0,110600.0,0.18083182]
[1760549694175,0.0449258,110610.0,110600.0,0.18083182]
[1760549696065,0.04492854,110610.0,110590.0,0.18084817]
[1760549696269,0.04492854,110610.0,110600.0,0.18083182]
[1760549696469,0.07717198,110610.0,110600.0,0.18083182]
[1760549697031,0.68192851,110610.0,110580.0,0.00904322]
[1760549697235,0.55955903,110600.0,110580.0,0.19005269]
[1760549697416,0.72408757,110600.0,110580.0,0.19005269]
[1760549697635,0.72408757,110600.0,110590.0,0.18084817]
[1760549697794,0.24513855,110600.0,110590.0,0.18084817]
[1760549697994,0.07677772,110600.0,110590.0,0.18084817]
[1760549698237,0.04452854,110600.0,110590.0,0.18084817]
[1760549699002,0.0911824,110600.0,110590.0,0.18084817]
[1760549699605,0.0921824,110600.0,110590.0,0.18084817]
[1760549699987,0.04452854,110600.0,110590.0,0.18084817]
[1760549700571,0.00939818,110600.0,110590.0,0.65979719]
[1760549700913,0.001,110600.0,110590.0,0.78566959]
[1760549701325,0.04496443,110610.0,110600.0,0.18083182]
[1760549702312,0.02562139,110610.0,110600.0,0.18083182]
[1760549704695,0.02562139,110610.0,110600.0,0.78565324]
[1760549704907,0.0004,110610.0,110600.0,0.78565324]
[1760549705531,0.0104,110610.0,110600.0,0.78565324]
[1760549706400,0.0104,110610.0,110600.0,0.30670422]
[1760549706611,0.0104,110610.0,110600.0,0.78565324]
[1760549707027,0.0104,110610.0,110600.0,0.31566739]
[1760549707262,0.0104,110610.0,110600.0,0.30670422]
[1760549709136,1e-08,110610.0,110600.0,1.60460226]
[1760549709551,0.05989739,110640.0,110630.0,0.21696506]
[1760549709552,0.00881822,110640.0,110630.0,0.21696506]
[1760549709788,0.12,110640.0,110630.0,0.7856042]
[1760549710037,1e-08,110640.0,110630.0,1.1256042]
[1760549710292,1e-08,110640.0,110630.0,1.13445919]
[1760549710729,0.00015072,110640.0,110630.0,1.13445919]
[1760549712072,0.00015072,110640.0,110630.0,0.64665518]
[1760549712315,0.00015072,110640.0,110630.0,1.1256042]
[1760549714944,0.03000001,110640.0,110630.0,1.1256042]
[1760549715365,0.03000001,110640.0,110630.0,1.5256042]
[1760549715581,0.03000001,110640.0,110630.0,1.04665518]
[1760549715791,0.03000001,110640.0,110630.0,1.5256042]
[1760549716910,0.03000001,110640.0,110630.0,1.53488534]
[1760549720789,0.03000001,110640.0,110630.0,0.65593632]
[1760549721056,0.03000001,110640.0,110630.0,0.74942192]
[1760549721312,0.03000001,110640.0,110630.0,0.2704729]
[1760549721742,0.03000001,110640.0,110630.0,0.74942192]
[1760549721954,0.03000001,110640.0,110630.0,0.7856042]
[1760549722611,0.03000001,110640.0,110630.0,0.2704729]
[1760549723239,0.03838006,110640.0,110630.0,0.2704729]
[1760549723444,0.03000001,110640.0,110630.0,0.2704729]
[1760549724915,0.03838199,110640.0,110630.0,0.18078278]
[1760549725353,0.05514747,110640.0,110630.0,0.18078278]
[1760549725980,0.05514747,110640.0,110630.0,0.6597318]
[1760549726191,0.03838199,110640.0,110630.0,0.6597318]
[1760549726625,0.03838199,110640.0,110630.0,0.18078278]
[1760549727460,0.03839121,110640.0,110630.0,0.18078278]
[1760549730348,0.18839121,110640.0,110630.0,0.18078278]
[1760549732057,0.18839906,110640.0,110630.0,0.6597318]
[1760549732256,0.18000001,110640.0,110630.0,0.6597318]
[1760549732455,0.18000001,110640.0,110630.0,0.77111011]
[1760549732665,1e-08,110650.0,110640.0,0.21694872]
[1760549732899,0.0004,110660.0,110650.0,0.18075011]
[1760549733270,0.13099154,110660.0,110650.0,0.74938925]
[1760549733425,0.13939415,110660.0,110650.0,0.74938925]
[1760549734034,0.13099154,110660.0,110650.0,0.74938925]
[1760549734242,0.13939779,110660.0,110650.0,0.74938925]
[1760549734440,0.13099154,110660.0,110650.0,0.74938925]
[1760549735272,0.13939852,110660.0,110650.0,0.74938925]
[1760549736504,0.13099154,110660.0,110650.0,0.78557153]
[1760549736744,0.07934304,110690.0,110680.0,0.18070112]
[1760549736949,0.07934304,110690.0,110680.0,0.65965014]
[1760549736950,0.08537726,110690.0,110680.0,0.65965014]
[1760549737158,0.07770988,110690.0,110680.0,0.78552254]
[1760549737377,0.0004,110700.0,110690.0,0.18068479]
[1760549737585,0.00090217,110700.0,110690.0,0.74932393]
[1760549741535,0.00090217,110700.0,110690.0,0.30655719]
[1760549741746,0.00090217,110700.0,110690.0,0.78550621]
[1760549742826,0.00090217,110700.0,110690.0,0.30655719]
[1760549743041,0.00090217,110700.0,110690.0,0.78550621]
[1760549744570,1e-08,110700.0,110690.0,0.78550621]
[1760549744798,1e-08,110720.0,110710.0,0.21683443]
[1760549745012,1e-08,110720.0,110710.0,0.78547357]
[1760549746774,1e-08,110720.0,110710.0,1.12547357]
[1760549747861,1e-08,110720.0,110710.0,1.12647357]
[1760549748311,0.00354711,110720.0,110710.0,1.12647357]
[1760549749398,0.0004,110730.0,110720.0,0.21681811]
[1760549749611,0.0502,110740.0,110730.0,0.65956854]
[1760549749837,0.05855302,110740.0,110730.0,0.74925866]
[1760549750061,0.05973486,110740.0,110730.0,0.74925866]
[1760549751814,0.05972892,110740.0,110730.0,0.74925866]
[1760549752246,0.05138184,110740.0,110730.0,0.74925866]
[1760549753334,0.05138184,110740.0,110730.0,1.0091435]
[1760549754213,0.0004,110760.0,110750.0,0.1805869]
[1760549754425,0.00874531,110760.0,110750.0,0.91942076]
[1760549755770,0.0004,110760.0,110750.0,0.91942076]
[1760549757223,0.0004,110760.0,110750.0,0.1805869]
[1760549757464,0.0004,110760.0,110750.0,1.00911088]
[1760549758165,0.00874606,110760.0,110750.0,1.00911088]
[1760549758389,0.0004,110760.0,110750.0,1.00911088]
[1760549759727,0.0004,110760.0,110750.0,1.01011088]
[1760549760287,0.0004,110760.0,110750.0,1.01111088]
[1760549760485,0.0004,110760.0,110750.0,0.27227702]
[1760549760729,0.00874909,110760.0,110750.0,0.27227702]
[1760549760952,0.00874909,110760.0,110750.0,0.1825869]
[1760549761262,0.02547269,110760.0,110750.0,0.1825869]
[1760549761879,0.02547269,110760.0,110750.0,0.1805869]
[1760549762250,0.04481573,110760.0,110750.0,0.1805869]
[1760549762618,0.04601194,110760.0,110750.0,0.1805869]
[1760549762812,0.04603179,110760.0,110750.0,0.1805869]
[1760549763231,0.07027452,110760.0,110750.0,0.1805869]
[1760549763648,0.19221382,110760.0,110740.0,0.18058847]
[1760549763836,0.55515041,110760.0,110750.0,0.1805869]
[1760549764048,0.00059081,110750.0,110740.0,0.18058847]
[1760549764256,0.07729027,110750.0,110740.0,0.18058847]
[1760549764458,0.1256511,110750.0,110740.0,0.18058847]
[1760549765297,0.34,110740.0,110720.0,0.18063182]
[1760549765512,0.13799095,110730.0,110720.0,0.18063479]
[1760549765735,0.09275111,110730.0,110720.0,0.18063479]
[1760549765947,0.10080573,110730.0,110720.0,0.18063479]
[1760549766381,0.0766535,110730.0,110720.0,0.91946865]
[1760549766594,0.04445028,110730.0,110720.0,0.91946865]
[1760549767020,0.04445028,110730.0,110720.0,1.00915877]
[1760549767735,0.04445028,110730.0,110720.0,1.40915877]
[1760549767944,0.04445028,110730.0,110720.0,1.41115877]
[1760549768218,0.02418033,110740.0,110730.0,0.18061952]
[1760549768432,0.03279403,110750.0,110740.0,0.18060321]
[1760549768433,0.02477114,110750.0,110740.0,0.18060321]
[1760549768649,0.00040001,110760.0,110750.0,0.1805869]
[1760549768867,0.0004,110770.0,110760.0,0.1805706]
[1760549769089,0.00055053,110770.0,110760.0,0.91940446]
[1760549769544,0.00055053,110770.0,110760.0,0.1805706]
[1760549771477,0.03275375,110770.0,110760.0,0.1805706]
[1760549771685,0.08105458,110770.0,110760.0,0.1805706]
[1760549771906,0.08105458,110770.0,110760.0,0.1805677]
[1760549771907,1.16852398,110770.0,110760.0,0.1805677]
[1760549772136,0.5193722,110770.0,110760.0,0.1805677]
[1760549772595,5.34,110760.0,110750.0,0.18058648]
[1760549772804,0.34,110760.0,110750.0,0.18058648]
[1760549773015,0.34,110760.0,110750.0,0.1805869]
[1760549774107,0.42969012,110760.0,110750.0,0.1805869]
[1760549774334,0.49968291,110760.0,110750.0,0.1805869]
[1760549774588,0.34,110750.0,110740.0,0.18060321]
[1760549777230,0.42969012,110750.0,110730.0,0.1806172]
[1760549777439,0.42969012,110740.0,110730.0,0.18061952]
[1760549778271,0.42969012,110740.0,110730.0,0.18041951]
[1760549778481,0.5193722,110740.0,110730.0,0.18041951]
[1760549778897,5.51116411,110760.0,110750.0,0.1805869]
[1760549779109,0.50027364,110760.0,110750.0,0.1805869]
[1760549780159,0.34,110750.0,110740.0,0.18058858]
[1760549780368,0.47432332,110750.0,110740.0,0.18058858]
[1760549781054,1.21315718,110750.0,110730.0,0.18945048]
[1760549781264,1.21314914,110750.0,110740.0,0.18060321]
[1760549781477,0.5640054,110750.0,110740.0,0.18060321]
[1760549782972,0.47432332,110750.0,110740.0,0.18060321]
[1760549784873,0.47431945,110750.0,110740.0,0.18060321]
[1760549786245,0.38462933,110750.0,110740.0,0.18060321]
[1760549786687,0.47431945,110750.0,110740.0,0.18060321]
[1760549786889,0.47431945,110750.0,110730.0,0.18945048]
[1760549787109,6.30283539,110750.0,110740.0,0.18060321]
[1760549787327,0.56400153,110750.0,110740.0,0.18060321]
[1760549787530,0.47431945,110750.0,110740.0,0.18060321]
[1760549789632,6.21315331,110750.0,110720.0,0.18966658]
[1760549789842,0.08969012,110740.0,110730.0,0.18060946]
[1760549790057,0.47431945,110740.0,110730.0,0.18060946]
[1760549790900,0.03621345,110740.0,110730.0,0.18060946]
[1760549791105,0.01682684,110740.0,110730.0,0.18060946]
[1760549791314,0.0368202,110760.0,110750.0,0.1805869]
[1760549791517,0.22461451,110760.0,110750.0,0.1805869]
[1760549791725,0.96344837,110760.0,110750.0,0.1805869]
[1760549791940,0.34,110750.0,110730.0,0.18964043]
[1760549792148,0.08969012,110740.0,110730.0,0.18964043]
[1760549792359,0.11495509,110740.0,110730.0,0.18964043]
[1760549792982,0.10653357,110740.0,110730.0,0.18964043]
[1760549793195,0.15312559,110740.0,110730.0,0.18964043]
[1760549793406,0.10653357,110740.0,110730.0,0.18964043]
[1760549793828,0.01684345,110740.0,110730.0,0.18964043]
[1760549794029,0.34,110750.0,110740.0,0.18060321]
[1760549794245,0.44653888,110750.0,110740.0,0.18060321]
[1760549794463,0.46592549,110750.0,110740.0,0.18060321]
[1760549794667,0.52154532,110750.0,110740.0,0.18060321]
[1760549796373,0.50215871,110750.0,110740.0,0.18060321]
[1760549797130,0.50215874,110750.0,110740.0,0.18060321]
[1760549797593,0.48530995,110750.0,110740.0,0.18060321]
[1760549797968,0.50215726,110750.0,110740.0,0.18060321]
[1760549798172,0.50215726,110750.0,110730.0,0.18964043]
[1760549798372,0.08969012,110740.0,110730.0,0.18061033]
[1760549798573,0.1793722,110740.0,110730.0,0.18061033]
[1760549799007,0.08969012,110740.0,110730.0,0.18061033]
[1760549799359,0.10654611,110740.0,110730.0,0.18061033]
[1760549799568,0.11542534,110740.0,110730.0,0.18061033]
[1760549800271,0.11542534,110740.0,110720.0,0.18062831]
[1760549800415,5.0,110730.0,110720.0,0.18062831]
[1760549800619,0.43856935,110740.0,110730.0,0.18061952]
[1760549800819,0.35686547,110740.0,110730.0,0.18061952]
[1760549801097,0.39561983,110750.0,110740.0,0.18060321]
[1760549801311,0.45499096,110750.0,110740.0,0.18060321]
[1760549801513,0.01686723,110750.0,110740.0,0.18060321]
[1760549801639,0.00059073,110760.0,110750.0,0.1805869]
[1760549801847,0.43028085,110760.0,110750.0,0.1805869]
[1760549802074,0.45560446,110760.0,110750.0,0.1805869]
[1760549802273,0.47505114,110760.0,110750.0,0.1805869]
[1760549802811,0.48501902,110760.0,110750.0,0.1805869]
[1760549803224,0.48601902,110760.0,110750.0,0.1805869]
[1760549803429,0.53813915,110760.0,110750.0,0.1805869]
[1760549803841,0.53713915,110760.0,110750.0,0.1805869]
[1760549804258,0.53813915,110760.0,110750.0,0.1805869]
[1760549804778,0.48601902,110760.0,110750.0,0.1805869]
[1760549805186,0.46913661,110760.0,110750.0,0.1805869]
[1760549805413,0.48601852,110760.0,110750.0,0.1805869]
[1760549808100,1.22485238,110760.0,110750.0,0.1805869]
[1760549808531,1.22485238,110760.0,110740.0,0.18075374]
[1760549808742,6.16852398,110750.0,110740.0,0.18073896]
[1760549808950,0.47445817,110750.0,110740.0,0.18073896]
[1760549809159,0.03632859,110750.0,110740.0,0.18073896]
[1760549809372,0.01155861,110760.0,110750.0,0.1805869]
[1760549809579,0.10968851,110760.0,110750.0,0.1805869]
[1760549809784,0.17878758,110760.0,110750.0,0.1805869]
[1760549809994,0.17778758,110760.0,110750.0,0.1805869]
[1760549810199,0.34,110750.0,110740.0,0.18073896]
[1760549810405,0.45500863,110750.0,110740.0,0.18073896]
[1760549810615,0.47445336,110750.0,110740.0,0.18073896]
[1760549810819,0.46601441,110750.0,110740.0,0.18073896]
[1760549811025,0.5495398,110750.0,110740.0,0.18073896]
[1760549812865,0.34059073,110760.0,110750.0,0.1805869]
[1760549813081,0.45560733,110760.0,110750.0,0.1805869]
[1760549813288,0.47505731,110760.0,110750.0,0.1805869]
[1760549814001,0.47605731,110760.0,110750.0,0.1805869]
[1760549814431,0.47705731,110760.0,110750.0,0.1805869]
[1760549814639,0.95476975,110760.0,110750.0,0.1805869]
[1760549814855,1.04445183,110760.0,110750.0,0.1805869]
[1760549817024,0.56673939,110760.0,110750.0,0.1805869]
[1760549817698,0.47705731,110760.0,110750.0,0.1805869]
[1760549817945,0.44144153,110760.0,110750.0,0.1805869]
[1760549818167,0.43228085,110760.0,110750.0,0.1805869]
[1760549818887,0.00259073,110760.0,110750.0,0.1805869]
[1760549820476,0.43228085,110760.0,110750.0,0.1805869]
[1760549820693,0.47550894,110760.0,110750.0,0.1805869]
[1760549820910,0.34259073,110760.0,110750.0,0.1805869]
[1760549821128,0.00259073,110760.0,110750.0,0.65829934]
[1760549821855,1e-08,110760.0,110750.0,0.65829934]
[1760549822752,0.00843772,110790.0,110780.0,0.180538]
[1760549822989,0.0002,110800.0,110790.0,0.1805217]
[1760549823214,0.42989012,110800.0,110790.0,0.1795217]
[1760549823441,0.55396201,110800.0,110780.0,0.179538]
[1760549823658,0.42969012,110790.0,110780.0,0.179538]
[1760549824132,0.342,110790.0,110780.0,0.179538]
[1760549824650,0.90940256,110790.0,110780.0,0.180538]
[1760549824866,0.45113518,110790.0,110780.0,0.180538]
[1760549825090,0.90940256,110790.0,110780.0,0.180538]
[1760549825319,0.92884762,110790.0,110780.0,0.180538]
[1760549825793,0.92684762,110790.0,110780.0,0.180538]
[1760549826026,0.44913518,110790.0,110780.0,0.180538]
[1760549826237,0.341,110790.0,110780.0,0.180538]
[1760549826482,0.343,110790.0,110780.0,0.180538]
[1760549826695,0.003,110790.0,110780.0,0.180538]
[1760549826918,0.002,110790.0,110780.0,0.180538]
[1760549827329,0.34928819,110800.0,110790.0,0.1795217]
[1760549827537,0.43897831,110800.0,110790.0,0.1795217]
[1760549827760,0.45838278,110800.0,110790.0,0.1795217]
[1760549828661,0.46074474,110800.0,110790.0,0.1775217]
[1760549828888,0.10134027,110800.0,110790.0,0.1775217]
[1760549829136,0.00456196,110800.0,110790.0,0.1775217]
[1760549829366,1e-08,110800.0,110790.0,0.74492426]
[1760549829594,0.0004,110810.0,110800.0,0.17950541]
[1760549829827,0.0002,110820.0,110810.0,0.17848912]
[1760549830047,0.00070198,110820.0,110810.0,0.17848912]
[1760549830269,0.00070198,110820.0,110810.0,0.17748912]
[1760549830718,0.00988128,110820.0,110810.0,0.17748912]
[1760549830925,0.00070198,110820.0,110810.0,0.17648912]
[1760549831134,0.00070198,110820.0,110810.0,0.19453803]
[1760549831135,0.00170198,110820.0,110810.0,0.19453803]
[1760549831550,0.00170198,110820.0,110810.0,0.17648912]
[1760549832416,0.00070198,110820.0,110810.0,0.19453803]
[1760549832628,0.01066605,110820.0,110810.0,0.19453803]
[1760549832832,0.00170198,110820.0,110810.0,0.21622622]
[1760549833044,0.00070198,110820.0,110810.0,0.17648912]
[1760549833284,0.00070198,110820.0,110810.0,0.19453803]
[1760549833500,0.00170198,110820.0,110810.0,0.19453803]
[1760549834184,0.00070198,110820.0,110810.0,0.19453803]
[1760549834405,0.00170198,110820.0,110810.0,0.19453803]
[1760549834634,0.00170198,110820.0,110810.0,0.65420156]
[1760549834843,1e-08,110820.0,110810.0,0.65420156]
[1760549835284,1e-08,110820.0,110810.0,0.17648912]
[1760549835528,1e-08,110820.0,110810.0,0.65420156]
[1760549835755,0.00118056,110820.0,110810.0,0.65420156]
[1760549836237,0.00118056,110820.0,110810.0,0.17648912]
[1760549836935,0.00118055,110820.0,110810.0,0.17648912]
[1760549837353,0.00218055,110820.0,110810.0,0.17648912]
[1760549838230,0.02157898,110820.0,110810.0,0.17648912]
[1760549838651,0.02157898,110820.0,110810.0,0.19453803]
[1760549838871,0.03371145,110830.0,110820.0,0.18047283]
[1760549839090,0.01800095,110830.0,110820.0,0.18047283]
[1760549839336,0.04224767,110830.0,110820.0,0.18047283]
[1760549839849,0.03261295,110840.0,110830.0,0.18045655]
[1760549839850,0.00020001,110840.0,110830.0,0.18045655]
[1760549840061,0.00020001,110840.0,110830.0,0.17945655]
[1760549840979,0.00020001,110840.0,110830.0,0.17845655]
[1760549842257,0.03261296,110840.0,110830.0,0.17845655]
[1760549842468,0.05038458,110840.0,110830.0,0.17845655]
[1760549842695,0.05038457,110840.0,110830.0,0.17845655]
[1760549842913,0.04938457,110840.0,110830.0,0.17845655]
[1760549843373,0.09789819,110840.0,110830.0,0.17845655]
[1760549844343,0.06548524,110840.0,110830.0,0.17845655]
[1760549844834,0.06548579,110840.0,110830.0,0.17845655]
[1760549845097,0.09768311,110840.0,110830.0,0.65616899]
[1760549845344,0.0004,110850.0,110840.0,0.18044027]
[1760549845830,0.0021702,110850.0,110840.0,0.18044027]
[1760549847067,0.01121188,110850.0,110840.0,0.18044027]
[1760549847305,0.01221188,110850.0,110840.0,0.18044027]
[1760549848278,0.101902,110850.0,110830.0,0.17845655]
[1760549848525,5.56740256,110840.0,110830.0,0.18045047]
[1760549848765,0.56740256,110840.0,110830.0,0.18045047]
[1760549849213,0.08969012,110840.0,110830.0,0.18045047]
[1760549849943,0.01044168,110850.0,110840.0,0.18044027]
[1760549850162,0.09009012,110850.0,110840.0,0.18044027]
[1760549851923,0.11786434,110850.0,110840.0,0.18044027]
[1760549852560,0.02817422,110850.0,110840.0,0.18044027]
[1760549855209,0.09257253,110850.0,110840.0,0.13165295]
[1760549855630,0.09434273,110850.0,110840.0,0.13165295]
[1760549857047,0.02994442,110850.0,110840.0,0.14969697]
[1760549857290,0.04679235,110850.0,110840.0,0.14969697]
[1760549857428,1e-08,110850.0,110840.0,0.14969697]
[1760549857642,1e-08,110850.0,110840.0,0.62740941]
[1760549857875,1e-08,110850.0,110840.0,0.60936539]
[1760549858339,1e-08,110850.0,110840.0,0.13165295]
[1760549858812,0.00923594,110860.0,110850.0,0.18042399]
[1760549859265,0.40459831,110870.0,110860.0,0.18040772]
[1760549859469,0.49443881,110870.0,110860.0,0.10723464]
[1760549860568,0.4300405,110870.0,110860.0,0.10723464]
[1760549861811,0.4310405,110870.0,110860.0,0.10723464]
[1760549862429,0.90875294,110870.0,110860.0,0.10723464]
[1760549862641,0.4310405,110870.0,110860.0,0.10723464]
[1760549865054,0.4796399,110870.0,110860.0,0.10723464]
[1760549865616,0.48081965,110870.0,110860.0,0.10723464]
[1760549867077,0.05112953,110870.0,110860.0,0.10723464]
[1760549867524,0.00253013,110870.0,110860.0,0.10723464]
[1760549867728,0.05112953,110870.0,110860.0,0.10723464]
[1760549868466,0.00253013,110870.0,110860.0,0.10723464]
[1760549869075,0.05112953,110870.0,110860.0,0.10723464]
[1760549869708,0.09587511,110870.0,110860.0,0.10723464]
[1760549870677,0.51533271,110870.0,110860.0,0.10723464]
[1760549872204,0.09587511,110870.0,110860.0,0.10723464]
[1760549872389,0.09578234,110870.0,110860.0,0.10723464]
[1760549875222,0.07956816,110870.0,110860.0,0.10723464]
[1760549876893,0.07956249,110870.0,110860.0,0.10723464]
[1760549878351,0.04717727,110870.0,110860.0,0.10723464]
[1760549878998,0.17717727,110870.0,110860.0,0.10723464]
[1760549879209,0.20956249,110870.0,110860.0,0.10723464]
[1760549879639,0.20956249,110870.0,110850.0,0.18042399]
[1760549879640,0.89911835,110870.0,110850.0,0.18042399]
[1760549879851,0.8979386,110870.0,110860.0,0.18040772]
[1760549880267,0.71754716,110870.0,110860.0,0.18040772]
[1760549880698,0.29707286,110870.0,110860.0,0.18040772]
[1760549880913,0.17599752,110870.0,110860.0,0.18040772]
[1760549881123,0.68516194,110870.0,110860.0,0.18040772]
[1760549881335,0.17499752,110870.0,110860.0,0.18040772]
[1760549881762,0.17599752,110870.0,110860.0,0.18040772]
[1760549882194,0.15656022,110870.0,110860.0,0.59988202]
[1760549882468,0.15656022,110870.0,110860.0,0.18040772]
[1760549883107,0.15656833,110870.0,110860.0,0.18040772]
[1760549884850,0.57604263,110870.0,110860.0,0.18040772]
[1760549885060,0.59547993,110870.0,110860.0,0.18040772]
[1760549885294,0.77587137,110870.0,110860.0,0.18040772]
[1760549885505,1.20556149,110870.0,110860.0,0.18040772]
[1760549885718,1.23794671,110870.0,110860.0,0.18040772]
[1760549885949,1.23794671,110870.0,110850.0,0.18042399]
[1760549886169,1.05873502,110870.0,110860.0,0.18040772]
[1760549886380,1.0263498,110870.0,110860.0,0.18040772]
[1760549887045,0.52040772,110860.0,110840.0,0.14067496]
[1760549887264,1.19432016,110860.0,110850.0,0.18042399]
[1760549887514,1.19432016,110860.0,110840.0,0.14067496]
[1760549887731,0.84916442,110850.0,110840.0,0.14067496]
[1760549887950,1.19433643,110850.0,110830.0,0.26122539]
[1760549888164,0.93991457,110840.0,110830.0,0.18947329]
[1760549888369,1.01547391,110840.0,110830.0,0.18947329]
[1760549888575,1.01546993,110840.0,110830.0,0.18947329]
[1760549889264,0.55969012,110840.0,110830.0,0.18947329]
[1760549890107,1.16884206,110840.0,110820.0,0.18949647]
[1760549890307,1.16884206,110840.0,110830.0,0.18045655]
[1760549890894,0.98840179,110840.0,110830.0,0.18045655]
[1760549891138,1.16884206,110840.0,110830.0,0.18045655]
[1760549891320,1.17786407,110840.0,110810.0,0.25726567]
[1760549891575,0.68962097,110830.0,110810.0,0.25726567]
[1760549891786,1.15962097,110830.0,110810.0,0.25726567]
[1760549891994,1.15962097,110830.0,110820.0,0.18047283]
[1760549892410,0.18047283,110820.0,110810.0,0.18551357]
[1760549892614,0.93993085,110830.0,110820.0,0.18047283]
[1760549892852,1.16962097,110830.0,110810.0,0.18566404]
[1760549893072,0.50916442,110820.0,110810.0,0.18566404]
[1760549893281,0.62916442,110820.0,110810.0,0.18566404]
[1760549893502,0.20969012,110820.0,110810.0,0.18566404]
[1760549893917,0.80963725,110820.0,110810.0,0.18566404]
[1760549894141,0.80963725,110820.0,110810.0,0.00015047]
[1760549894357,1.14963725,110820.0,110810.0,0.18063959]
[1760549894574,1.16900003,110820.0,110810.0,0.00015047]
[1760549895006,0.5690529,110820.0,110810.0,0.18063959]
[1760549895265,0.54969012,110820.0,110810.0,0.18063959]
[1760549896109,0.55069012,110820.0,110810.0,0.18063959]
[1760549897222,0.121,110820.0,110810.0,0.18063959]
[1760549897434,0.121,110820.0,110810.0,0.60011389]
[1760549897665,0.061,110820.0,110810.0,0.18063959]
[1760549898092,0.15069012,110820.0,110810.0,0.18063959]
[1760549898309,5.57016442,110820.0,110810.0,0.00015047]
[1760549898528,6.18031933,110820.0,110810.0,0.18063959]
[1760549898749,0.5803722,110820.0,110810.0,0.18063959]
[1760549898956,0.48969012,110820.0,110810.0,0.18063959]
[1760549899177,0.91016442,110820.0,110810.0,0.18063959]
[1760549899609,0.90916442,110820.0,110810.0,0.18063959]
[1760549900031,1.09063725,110820.0,110810.0,0.18063959]
[1760549900249,0.92949273,110820.0,110810.0,0.18063959]
[1760549900939,0.49069012,110820.0,110810.0,0.18063959]
[1760549901160,0.43069012,110820.0,110810.0,0.18063959]
[1760549901376,0.07009474,110850.0,110830.0,0.18045655]
[1760549901612,5.68960606,110840.0,110830.0,0.18045655]
[1760549901830,0.26578894,110840.0,110830.0,0.18045655]
[1760549902043,0.22969012,110840.0,110830.0,0.18045655]
[1760549904016,0.23069012,110840.0,110830.0,0.18045655]
[1760549904291,0.3203722,110840.0,110830.0,0.18045655]
[1760549904535,0.23069012,110840.0,110830.0,0.18045655]
[1760549904952,0.57069012,110840.0,110830.0,0.18045655]
[1760549906847,0.23069012,110840.0,110830.0,0.18045655]
[1760549908469,0.22969012,110840.0,110830.0,0.18045655]
[1760549909095,0.23862002,110840.0,110830.0,0.18045655]
[1760549911308,0.26381604,110840.0,110830.0,0.18045655]
[1760549912012,0.30902033,110840.0,110810.0,0.99954396]
[1760549912240,5.0,110830.0,110820.0,0.18047283]
[1760549912458,5.26581883,110830.0,110820.0,0.18047283]
[1760549912884,0.24902148,110830.0,110820.0,0.18047283]
[1760549913097,0.22969012,110830.0,110820.0,0.91860065]
[1760549913553,0.14,110830.0,110820.0,0.91860065]
[1760549913968,0.14,110830.0,110820.0,0.91960065]
[1760549917686,0.14,110830.0,110820.0,0.91860065]
[1760549917905,0.14,110830.0,110820.0,0.92060065]
[1760549925465,0.14,110830.0,110820.0,0.60221268]
[1760549926147,0.14,110830.0,110820.0,0.18247283]
[1760549926366,0.14,110830.0,110820.0,1.02095253]
[1760549926579,0.14,110830.0,110820.0,0.60121268]